Workbook

Sheet Intro round
A3: Same & Different Game
A6: Participant 1 (P1):
A7: Participant 2 (P2):
A8: Participant 3 (P3):
A9: Participant 4 (P4):
A12: You have 5 minutes in a breakout-Room to get to know each other in a quick way. The goal for you is to find similarities and differences. They can be from whatever topic you discover (hobbies, interests, personal experiences, movies or tv shows you like, e.g....). Try to skip things like gender or age. Note the things you find in this working excel to have a quick presentation in the group afterwards. | M12: Trainer Hints
M14: This task is done early in the training to break the ice between the participants and to give them a chance to get to know each other besides the introduction round. They will work in a lot of group excercises so they should know each other better from the beginning. This also helps them to get used to working in the shared Excel_Participants file.
A20: Similarities | G20: Differences

Sheet Formality benefits
A3: Formality advantages
A6: Participant 1 (P1):
A7: Participant 2 (P2):
A8: Participant 3 (P3):
A9: Participant 4 (P4):
A11: Task:
A12: You have 15 minutes in a breakout-Room to find reasons for MSME to get registered and formalize. Also think about how you would convince an informal client to get registered and how to counter arguements. Note the things you find in this working excel to have a quick presentation in the group afterwards.
A20: Benefits of formality
A22: This section is to prepare the people in direct customer contact to gain confidence to talk about the topic of formality. The key things to note are: - Qualification for loans - Tax is only paid after a big threshhold (and excemptions are possible) - Subvention and funding from official institutions - Alternative Entity possibilities with their advantage become possible (Ltd. ; Partnerhsips ; Franchises) - Legal protection ... The participants should also gain a feeling to argue these topics to a client.

Sheet Information P1
A3: Client Information
A6: Participant 1 (P1):
A7: Participant 2 (P2):
A8: Participant 3 (P3):
A9: Participant 4 (P4):
A11: Task:
A12: You have 5 minutes to note down all the information you can imagine being useful about a client and his business. The goal is to think of as much as possible, being it relevant or might seem irrelevant at first.
A20: Information about a client and his business

Sheet Information P2
A3: Client Information
A6: Participant 1 (P1):
A7: Participant 2 (P2):
A8: Participant 3 (P3):
A9: Participant 4 (P4):
A11: Task:
A12: You have 5 minutes to note down all the information you can imagine being useful about a client and his business. The goal is to think of as much as possible, being it relevant or might seem irrelevant at first.
A20: Information about a client and his business

Sheet Information P3
A3: Client Information
A6: Participant 1 (P1):
A7: Participant 2 (P2):
A8: Participant 3 (P3):
A9: Participant 4 (P4):
A11: Task:
A12: You have 5 minutes to note down all the information you can imagine being useful about a client and his business. The goal is to think of as much as possible, being it relevant or might seem irrelevant at first.
A20: Information about a client and his business

Sheet Client
A3: Client interview
A6: Participant 1 (P1):
A7: Participant 2 (P2):
A8: Participant 3 (P3):
A9: Participant 4 (P4):
A11: Task:
A12: You will be moved into a breakout room. One person will be asigned customer, one person relationship manager and 1-2 observers. The goal for the relationship manager is to gather as much information as possible and keep the conversation going. The oberservers will note the information provided and will provide feedback afterwards.
A16: Client:
A17: You are assigned client for this roleplay. Down below you find basic information about your role. Feel free to make up sensible information to keep the conversation going. Dont make it too hard for the relationship manager. You unlock the information with your password
A20: Client Profile
A22: Name: "your name" Age: "your age" Personal background: Married with kids. Owns his own house which is financed at another institution (estimated worth 150,000 XCD, loan of 50,000 XCD remaining. You worked for the government for several years until you got the opportunity to start a restaurant with your brother. Business: You started the business together but your brother left the country with his family to live and work in the United States 5 years ago. The restaurant is a typical tourist place close to the beach with several hotels around. Rented for 4.000 XCD per month. You offer mostly beverages, burgers and fish. Now you get the opportunity to rent a small place next to your restaurant and you have the idea to offer smoothies and healthy drinks in that place. You feel like you can utilize syngergies with your restaurant, since the small amount of health drinks on your existing menu run really well. Your sourcing is allready in place by your restaurant so you mainly need a loan of 50,000 XCD for furnishing the smoothie bar. Key figures for your restaurant: - Turnover 30,000 XCD per month, after all expenses you have about 7,000 XCD for your salary and profit - You started business in 2012 - Sourcing mostly local, but your supplier for vegetables has been unreliable lately so you are looking for someone new - You do no Marketing For training purposes feel free to make up sensible information as you need it !

Sheet Relationship manager
A3: Client interview
A6: Participant 1 (P1):
A7: Participant 2 (P2):
A8: Participant 3 (P3):
A9: Participant 4 (P4):
A11: Task:
A12: You have 10 minutes to note down all the information you can imagine being useful about a client and his business. The goal is to think of as much as possible, being it relevant or might seem irrelevant at first.
A20: Interview your client in a meeting
A22: Try to start with Open questions If you get information that you find hard to believe try to confirm it (maybe with a closed question) or ask for deeper explanation Dont forget that behind every business there is a private person aswell

Sheet Observer
A3: Client interview
A6: Participant 1 (P1):
A7: Participant 2 (P2):
A8: Participant 3 (P3):
A9: Participant 4 (P4):
A11: Task:
A12: Your 2 colleagues will perform an interview in the breakout room. Your task is to observe and note things you find important. Pay attention to the questions the relationship manager asks and how he phrases them (are they open? / Closed questions for confirmation?). GIve feedback in your group after
A20: Information about a client and his business

Sheet P&L PX
A3: Profit & Loss
A6: Participant 1 (P1):
A7: Participant 2 (P2):
A8: Participant 3 (P3):
A9: Participant 4 (P4):
A11: Task:
A12: Jonathan ran his Taxi business for a year now. You as his Banker help him in doing his first Profit & Loss statement. After you spoke about it he noted you down the business incidents and (maybe) important things you two need to do the P&L. Please fill out the following P&L for Jonathan considering the 10 noted points you and Jonathan spoke about.
H16: Jonathans Taxi Business
B18: Position | D18: Total for period | E18: Total for period | H18: 1. After the first months business kept growing. So from January to April Jonathan saw an steady income of XCD 600 per day (20 workdays per month). From May on he acquired some key customers which led to an increase in monthly revenue of XCD 15,000. 2. To attract more customers Jonathan thought about doing some advertisement. In July he printed some Flyers and paid them cash. XCD 150 3. In October he had troubles with his used car. Luckily he didnt have any revenue lost but he had to pay XCD 3,000 for repairs. Additionally the used car needs regular maintenace for the cost of XCD 1,000 per month during the whole year. 4. He handed you all the receipts from gas stations for the whole year in one package. After adding up all the figures you calculated cost for gas to be XCD 70.000 5. His phone plan costs him XCD 80 per month. 6. The car insurance for the year is XCD 6,000 7. He had no employess during the year 8. He bought his used Car at the beginning of the year for XCD 21,000. He says that he plans to use the car for the next 3 years, then it has to be substituted. 9. Jonathan estimated all other expenses for small utility things to be about XCD 8,000 for the year. 10. He had no interest or tax paid during his first year of business.
B19: - Services / Rent | F19: =IF(D19=E19,"Yes","No") -> Yes
B20: - Trade | F20: Yes
B21: - Services / Transport | D21: 168000 | E21: 168000 | F21: =IF(D21=E21,"Yes","No") -> Yes
B22: TOTAL SALES | D22: =SUM(D19:D21) -> 168000 | E22: =SUM(E19:E21) -> 168000
B23: - Cost of services | F23: Yes
B24: - Cost of goods traded | F24: Yes
B25: - Cost of goods transport services | D25: 70000 | E25: 70000 | F25: Yes
B26: TOTAL COST OF GOODS SOLD | D26: =SUM(D23:D25) -> 70000 | E26: =SUM(E23:E25) -> 70000
B27: Margin
B28: - Service | D28: =D29/D22 -> 0.5833333333 | E28: =E29/E22 -> 0.5833333333
B29: GROSS PROFIT | D29: =D22-D26 -> 98000 | E29: =E22-E26 -> 98000
B30: - Salaries and social insurance | E30: 0 | F30: =IF(D30=E30,"Yes","No") -> Yes
B31: - Rent costs | E31: 0 | F31: Yes
B32: - Insurances | D32: 6000 | E32: 6000 | F32: Yes
B33: - Maintenance | D33: 15000 | E33: 15000 | F33: Yes
B34: - Marketing | D34: 150 | E34: 150 | F34: Yes
B35: - Administrative (tel, office supplies, etc) | D35: 960 | E35: 960 | F35: Yes
B36: - Depreciation | D36: 7000 | E36: 7000 | F36: Yes
B37: - Others | D37: 8000 | E37: 8000 | F37: Yes
B38: TOTAL OPERATIVE COSTS | D38: =SUM(D30:D37) -> 37110 | E38: =SUM(E30:E37) -> 37110
B39: PROFIT BEFORE TAX AND INTEREST (EBIT) | D39: =D29-D38 -> 60890 | E39: =E29-E38 -> 60890
B40: - Bank interest | F40: =IF(D40=E40,"Yes","No") -> Yes
B41: - Profit tax | F41: Yes
B42: NET PROFIT FROM MAIN OPERATIONS | D42: =D39-D40-D41 -> 60890 | E42: =E39-E40-E41 -> 60890

Sheet Cash Flow PX
A3: Cash Flow
A6: Participant 1 (P1):
A7: Participant 2 (P2):
A8: Participant 3 (P3):
A9: Participant 4 (P4):
A11: Task: Try to fill out the Cash-Flow for the upcoming year of Jonathans business considering the 10 notes on the side.
R13: Jonathans Taxi business
R15: 1. Jonathans Taxi business is still expected to stay stable at an Income from customers of XCD 15,000 per month. 2. The new business opportunity is estimated to be making XCD 25,000 during the main season from November until (including) May and XCD 12,500 during off season. But the hotel pays Jonathan 1 month after he provided his service. 2. His insurance for the Taxi and the Bus is now XCD 10,000 for the whole year, paid in December. 4. He pays the employee whos driving the Bus XCD 5,000 a month throughout the whole year. With a bonus of XCD 1,000 for Christmas. 5. He added up his "other expenses" to be at around XCD 500 a month. 6. The car insurance for the year is XCD 10,000, paid in December 7. He has gas expenses of XCD 20,000 during the season and XCD 13,000 in off season which he pays without any payment target. 8. You quickly calulate a loan for him. The loan is XCD 50,000 and disbursed in January. His monthly repayment is XCD 1,000 (starting in February). Your bank charges XCD 120 monthly for Services. 9. Jonathan wants to rent a place for XCD 500 to have a place to keep the verhicles and do small repairs. The place he is looking at is available in March. 10. Jonathan expects to up his salary for his personal use from XCD 6,000 to XCD 10,000 from May in the year.
A16: Cash Coming Into And Leaving Jonathan's Business
B18: January | C18: February | D18: March | E18: April | F18: May | G18: June | H18: July | I18: August | J18: September | K18: October | L18: November | M18: December | N18: Totals | O18: Totals
A19: Receipts
A20: Cash from sales | B20: 15000 | C20: 15000 | D20: 15000 | E20: 15000 | F20: 15000 | G20: 15000 | H20: 15000 | I20: 15000 | J20: 15000 | K20: 15000 | L20: 15000 | M20: 15000 | N20: =SUM(B20:M20) -> 180000 | O20: 180000 | P20: =IF(O20=N20,"YES","NO") -> YES
A21: Cash from your debtors | B21: 25000 | C21: 25000 | D21: 25000 | E21: 25000 | F21: 25000 | G21: 25000 | H21: 12500 | I21: 12500 | J21: 12500 | K21: 12500 | L21: 12500 | M21: 25000 | N21: =SUM(B21:M21) -> 237500 | O21: 237500 | P21: =IF(O21=N21,"YES","NO") -> YES
A22: Cash you've provided | B22: 0 | C22: 0 | D22: 0 | E22: 0 | F22: 0 | G22: 0 | H22: 0 | I22: 0 | J22: 0 | K22: 0 | L22: 0 | M22: 0 | N22: =SUM(B22:M22) -> 0 | O22: 0 | P22: YES
A23: Total Receipts (a) | B23: =SUM(B20:B22) -> 40000 | C23: 40000 | D23: 40000 | E23: 40000 | F23: 40000 | G23: 40000 | H23: 27500 | I23: 27500 | J23: 27500 | K23: 27500 | L23: 27500 | M23: 40000 | N23: =SUM(B23:M23) -> 417500 | O23: 417500
A25: Payments
A26: Payments to your creditors | B26: 0 | C26: 0 | D26: 0 | E26: 0 | F26: 0 | G26: 0 | H26: 0 | I26: 0 | J26: 0 | K26: 0 | L26: 0 | M26: 0 | N26: =SUM(B26:M26) -> 0 | O26: 0 | P26: =IF(O26=N26,"YES","NO") -> YES
A27: Your salary/ drawings | B27: 6000 | C27: 6000 | D27: 6000 | E27: 6000 | F27: 10000 | G27: 10000 | H27: 10000 | I27: 10000 | J27: 10000 | K27: 10000 | L27: 10000 | M27: 10000 | N27: 104000 | O27: 104000 | P27: YES
A28: Other salaries | B28: 5000 | C28: 5000 | D28: 5000 | E28: 5000 | F28: 5000 | G28: 5000 | H28: 5000 | I28: 5000 | J28: 5000 | K28: 5000 | L28: 5000 | M28: 6000 | N28: 61000 | O28: 61000 | P28: YES
A29: Rents / water charges | B29: 0 | C29: 0 | D29: 500 | E29: 500 | F29: 500 | G29: 500 | H29: 500 | I29: 500 | J29: 500 | K29: 500 | L29: 500 | M29: 500 | N29: 5000 | O29: 5000 | P29: YES
A30: Gas, Electricity, Oil | B30: 20000 | C30: 20000 | D30: 20000 | E30: 20000 | F30: 20000 | G30: 13000 | H30: 13000 | I30: 13000 | J30: 13000 | K30: 13000 | L30: 20000 | M30: 20000 | N30: 205000 | O30: 205000 | P30: YES
A31: Insurances | B31: 0 | C31: 0 | D31: 0 | E31: 0 | F31: 0 | G31: 0 | H31: 0 | I31: 0 | J31: 0 | K31: 0 | L31: 0 | M31: 10000 | N31: 10000 | O31: 10000 | P31: YES
A32: Property & Machinery Expenses | B32: 0 | C32: 0 | D32: 0 | E32: 0 | F32: 0 | G32: 0 | H32: 0 | I32: 0 | J32: 0 | K32: 0 | L32: 0 | M32: 0 | N32: 0 | O32: 0 | P32: YES
A33: Lawyer /Accountants /Advertising Fees | B33: 0 | C33: 0 | D33: 0 | E33: 0 | F33: 0 | G33: 0 | H33: 0 | I33: 0 | J33: 0 | K33: 0 | L33: 0 | M33: 0 | N33: 0 | O33: 0 | P33: YES
A34: Loan Repayments | B34: 0 | C34: 1000 | D34: 1000 | E34: 1000 | F34: 1000 | G34: 1000 | H34: 1000 | I34: 1000 | J34: 1000 | K34: 1000 | L34: 1000 | M34: 1000 | N34: 11000 | O34: 11000 | P34: YES
A35: Bank Charges | B35: 120 | C35: 120 | D35: 120 | E35: 120 | F35: 120 | G35: 120 | H35: 120 | I35: 120 | J35: 120 | K35: 120 | L35: 120 | M35: 120 | N35: 1440 | O35: 1440 | P35: YES
A36: Others | B36: 500 | C36: 500 | D36: 500 | E36: 500 | F36: 500 | G36: 500 | H36: 500 | I36: 500 | J36: 500 | K36: 500 | L36: 500 | M36: 500 | N36: 6000 | O36: 6000 | P36: YES
A37: Total Payments (b) | B37: =SUM(B26:B36) -> 31620 | C37: 32620 | D37: 33120 | E37: 33120 | F37: 37120 | G37: 30120 | H37: 30120 | I37: 30120 | J37: 30120 | K37: 30120 | L37: 37120 | M37: 48120 | N37: 403440 | O37: 403440 | P37: YES
A39: Cash coming into the business (a-b) | B39: =SUM(B23-B37) -> 8380 | C39: 7380 | D39: 6880 | E39: 6880 | F39: 2880 | G39: 9880 | H39: -2620 | I39: -2620 | J39: -2620 | K39: -2620 | L39: -9620 | M39: -8120 | N39: =SUM(B39:M39) -> 14060 | O39: 14060
A41: Opening balance | B41: 0 | C41: =B43 -> 8380 | D41: 15760 | E41: 22640 | F41: 29520 | G41: 32400 | H41: 42280 | I41: 39660 | J41: 37040 | K41: 34420 | L41: 31800 | M41: 22180 | N41: 14060 | O41: 0
A43: Closing balance | B43: =SUM(B41+B39) -> 8380 | C43: 15760 | D43: 22640 | E43: 29520 | F43: 32400 | G43: 42280 | H43: 39660 | I43: 37040 | J43: 34420 | K43: 31800 | L43: 22180 | M43: 14060
L47: Please only check results after you are finished

Sheet Name the Business
A3: Businesses and their comparability
A6: Participant 1 (P1):
A7: Participant 2 (P2):
A8: Participant 3 (P3):
A9: Participant 4 (P4):
A11: Task:
D19: COMPANY A
L20: What business is company A ?
N22: Auto repair
L24: Why did you pick that business ?
D34: COMPANY B
L35: What business is Company B ?
N37: E-Commerce
L39: Why did you pick that business ?
D49: COMPANY C
L50: What business is Company C ?
N52: Restaurant
L54: Why did you pick that business ?
D64: COMPANY D
L65: What business is Company D ?
N67: Agriculture
L69: Why did you pick that business ?
D79: COMPANY E
L80: What business is Company E ?
N82: Store for handmade products
L84: Why did you pick that business ?

Sheet Questions
A3: Questions, data and risk
A6: Participant 1 (P1):
A7: Participant 2 (P2):
A8: Participant 3 (P3):
A9: Participant 4 (P4):
A11: Task:
A12: Here your group will find a number of questions to discuss. How strong would a possible "yes" or "no" answer influence your credit decision. If a questions would influence your decision, then rate how strong. Step 1: Answer "Yes/No" wheather or not the question is influencing your decision in a good or bad way Step 2: Select 1 to 5 for how strong the influence would be
L16: Step 1 | N16: Step 2
N17: If "Yes" how strong is the influence ?
A18: Question 1: | L18: Answer: | N18: 1 - being not so important / 5 - being very important
A19: Your customer is 32. Is succession planning in place ? | L19: Select here | N19: Select here
A21: Question 2:
A22: Your customer is 62. Is succession planning in place ? | L22: Select here | N22: Select here
A24: Question 3:
A25: Does the enterpreneur posses the skills and expereience to operate the business ? | L25: Select here | N25: Select here
A27: Question 4:
A28: Are the financial projections within reasonable range ? | L28: Select here | N28: Select here
A30: Question 5:
A31: You have no experience with customers in the business segment of the client ? | L31: Select here | N31: Select here
A33: Question 6:
A34: You have an properly crafted business plan with all the information you wanted ? | L34: Select here | N34: Select here
A36: Question 7:
A37: Your customer has been insolvent / bankrupt in the past | L37: Select here | N37: Select here
A39: Question 8:
A40: Is the customers industry on a growth path ? | L40: Select here | N40: Select here
A42: Question 9:
A43: The customer can offer you not a lot of collaterals | L43: Select here | N43: Select here

Sheet ECPCGC
A3: ECPCGC Collateral
A6: Participant 1 (P1):
A7: Participant 2 (P2):
A8: Participant 3 (P3):
A9: Participant 4 (P4):
A11: Task:
A12: You have 15 minutes in a breakout-Room to note the advantages the ECPCGC Guarantee can provide to your lending procedures, how will it change the way you approach a MSME loan assessment. Note the things you find in this working excel to have a quick presentation in the group afterwards.
A20: ECPCGC Guarantee
A22: The goal in this Task is for the participants to learn about the value the guarantees can offer. Sustainable business models which lacked collaterals in the past have now a chance to get financing through financial institutions with support from the guarantee. The cost of the guarantee should also reduce the interest the customer has to pay since the inclusion of the guarantee provides sufficient collateral and therefore risk-adjusted pricing should be applied. A high value collateral is lowering the interest of the borrower since the financial institution is not exposed to as much risk as without. Additionally the guarantee is an enabler for the approval of the loan.

Sheet Lean Canvas
A3: Lean Canvas & Negotiation
Q4: Lean Canvas Template
A6: Participant 1 (P1):
A7: Participant 2 (P2):
A8: Participant 3 (P3):
A9: Participant 4 (P4):
A11: Task:
A12: Make yourself, once again, familiar with the Lean Canvas Template we quickly spoke about in Module 1. You can go to the Powerpoint Module 1 and repeat the 9 essential steps and topics, there is some more information in the "Research links and more information" Word-file.

Sheet Negotiator 1
A3: Negotiation
A6: Participant 1 (P1):
A7: Participant 2 (P2):
A8: Participant 3 (P3):
A9: Participant 4 (P4):
A11: Task:
A12: You will be moved into a breakout room. One person will be asigned customer, one person relationship manager and 1-2 observers. You are the Client for this Scenario. Click on the Button and see the assignment.
A20: Assignment Client
A22: Scenario: You used to work as a cook. You like a healthy lifestyle and invented a way to make Vegan Cheese. So you started a business producing your cheese. Your idea is to sell the Cheese to restaurants who use it to cook vegan meals. To start your business and develop the product you used your savings and invested all of them in your dream. Now you need money to really establish your business. So a couple of week ago you went to the bank and spoke to the relationship manager. He asked your a lot of question, gathered a lot of information about you and your business and did a loan application. He also filled out the lean canvas (see below) with you together. You have an appointment with him today. You really hope you get a good interest rate and the loan can be disbursed quickly. You have a lot of use for that money to get your business going. After all you dont have a customer yet. Even though the demand has been signaled to you by some restaurants.

Sheet Negotiator 2
A3: Negotiation
A6: Participant 1 (P1):
A7: Participant 2 (P2):
A8: Participant 3 (P3):
A9: Participant 4 (P4):
A11: Task:
A12: You will be moved into a breakout room. One person will be asigned customer, one person relationship manager and 1-2 observers. You are the Relationship Manager in this scenario. Click on the Button and see the assignment.
A20: Assignment Relationship Manager
A22: Scenario: You are relationship manager in your bank. The client approached you a couple of weeks ago to apply for a loan. You interviewed the customer and visited his business place. You and the client filled out a lean canvas together (see below). After you finished the loan application it got rejected from your Manager. The reason: The client has no track record to show really. The business idea is good but there is not sufficient outlook that the sales projection will be fulfilled. After all there are no customers yet, even if some restaurants showed the demand, there has been no revenue yet. So you are now tasked with bringing the message to your customer. Try to use the communcation methods we spoke about. Negotiate with your customer. Your main goal is to not demotivate the client and to come up with a solution for everyone.

Sheet Negotiation Observer
A3: Client interview
A6: Participant 1 (P1):
A7: Participant 2 (P2):
A8: Participant 3 (P3):
A9: Participant 4 (P4):
A11: Task:
A12: Your 2 colleagues will perform an Relationship Manager / Client Scenario. The background story is as follows: The client has been working as a cook and got the idea of creating a vegan cheese. He injected his savings into the dream of starting his own business. The business started and now to get really established he needs money injection from outside. He applied for a loan as the relationship managers bank. The latter did an interview with him, analyzed the business and even filled out a lean canvas business model with him (see below). Task: Note down key aspects of the conversation from your colleagues. Pay attention to the Emotions, Commincation and Perceptions of the two. Give feedback to your group afterwards.
A24: Observer 1 | M24: Observer 2

Sheet Relationship building
A3: Relationship building
A6: Participant 1 (P1):
A7: Participant 2 (P2):
A8: Participant 3 (P3):
A9: Participant 4 (P4):
A11: Task:
A12: You have 15 minutes in your group to discuss and note down possible ways to strenghten your customer relationship building. What actions can you implement on an quarterly / half-year / annual basis ? When do you contact your client ?
A20: Strenghten your customer relationship
A22: In this Task the participants are to devlop ideas to strenghten customer relationship building. They should pick up on the three topics we spoke about just beforehand (1. Monitor Loan usage / 2. Implement financial Monitoring / 3. Maximize Customer Value) as well as come up with more factors to consider.

Sheet Helper
A1: Select here | C1: Select here | F1: Select here
A2: Hotel | C2: Yes | F2: 1
A3: Restaurant | C3: No | F3: 2
A4: Taxi | F4: 3
A5: E-Commerce | F5: 4
A6: Auto repair | F6: 5
A7: Car sales
A8: Agriculture
A9: Manufacturing
A10: Real Estate investment
A11: Store for handmade products
